Cogmind - Beta 13 @@@ ROGUE MODE // 2024.04.30 @ 11:43:11 Player: Oldman Pu Result: Destroyed by HP-9VV(R) with Subdweller Laser Performance ------------- Evolutions (0) 0 Regions Visited (2) 400 Robots Destroyed (21) 105 Value Destroyed (643) 643 Prototype IDs (0) 0 Alien Tech Used (0) 0 Bonus (0) 0 TOTAL SCORE: 1148 Bonus ------- None Cogmind --------- Core Integrity 0/250 Matter 251/300 Energy 100/100 System Corruption 2% Temperature Cool (6) Movement Rolling (100) Location -10/Subcaves Parts ------- > --- POWER (1) -------- (None) > --- PROPULSION (2) --- Compact Wheel Compact Wheel > --- UTILITY (2) ------ Large Storage Unit Light Armor Plating > --- WEAPON (2) ------- Small Laser Light Assault Rifle > --- INVENTORY (15) --- Ion Engine Ion Engine Compact Wheel Compact Wheel Improved Heat Sink Improved Heat Sink Improved Heat Sink Improved Targeting Computer Improved Targeting Computer Light Armor Plating EM Shotgun EM Shotgun EM Shotgun EM Shotgun Peak State ------------ > --- POWER ------------ Light Nuclear Core > --- PROPULSION ------- Compact Wheel Compact Wheel > --- UTILITY ---------- Huge Storage Unit Improved Targeting Computer > --- WEAPON ----------- Medium Laser Assault Rifle > --- INVENTORY -------- Ion Engine Ion Engine Compact Wheel Compact Wheel Compact Wheel Compact Wheel Improved Heat Sink Improved Heat Sink Medium Storage Unit Light Armor Plating Light Armor Plating Small Laser Light Assault Rifle [Rating: 11] Favorites ----------- Power Ion Engine Engine Ion Engine Power Core Light Nuclear Core Propulsion Compact Wheel Wheel Compact Wheel Utility Improved Targeting Computer Storage Small Storage Unit Processor Improved Targeting Computer Protection Light Armor Plating Weapon Assault Rifle Energy Gun Medium Laser Ballistic Gun Assault Rifle Build | -11 -10 -10 ------- Run | Yrd Mat Sub Slots Evolved . | . . . Power . | . . . Propulsion . | . . . Utility . | . . . Weapon . | . . . Parts Attached 25 | 6 18 1 Power 4 | 1 3 . Engine 3 | 1 2 . Core 1 | . 1 . Reactor . | . . . Propulsion 8 | 2 6 . Treads . | . . . Leg . | . . . Wheel 8 | 2 6 . Hover . | . . . Flight . | . . . Utility 6 | 1 4 1 Device . | . . . Storage 4 | 1 3 . Processor 1 | . 1 . Hackware . | . . . Protection 1 | . . 1 Artifact . | . . . Weapon 7 | 2 5 . Energy Gun 3 | 1 2 . Energy Cannon . | . . . Ballistic Gun 4 | 1 3 . Ballistic Cannon . | . . . Launcher . | . . . Special Weapon . | . . . Impact Weapon . | . . . Slashing Weapon . | . . . Piercing Weapon . | . . . Special Melee Weapon . | . . . Unidentified Prototypes . | . . . Parts Lost 5 | . 4 1 Power 1 | . . 1 Propulsion 1 | . 1 . Utility . | . . . Weapon 3 | . 3 . Highest Loss Streak 2 | . 2 1 To Critical Strikes . | . . . Average Slot Usage (%) 99 | . 99 99 Engine 12 | . 12 13 Core 1 | . 1 . Wheel 27 | . 27 28 Storage 14 | . 14 14 Processor 13 | . 13 12 Energy Gun 13 | . 13 14 Ballistic Gun 14 | . 14 14 Naked Turns . | . . . Heaviest Build 89 | 14 89 27 Greatest Support 32 | 26 32 32 Greatest Overweight (x) 5 | 1 5 . Average Overweight (x) . | . . . Largest Inventory Capacity 25 | 8 25 15 Average Capacity 15 | 7 15 15 Most Carried 15 | 1 15 15 Average Carried 9 | . 8 14 Final Capacity 15 | 8 15 15 Final Carried 15 | 1 15 14 Class Distribution -------------------- 100% | Mutant Dominant Class ---------------- Mutant | -10/Materials Mutant | -10/Subcaves Resources | -11 -10 -10 ----------- Run | Yrd Mat Sub Matter Collected 670 | 199 471 . Remotely . | . . . Salvage Created 808 | . 768 40 Parts 49 | . 47 2 Haulers Intercepted 2 | . 2 . Recyclers Shooed . | . . . Parts Field Recycled . | . . . Retrieved Matter . | . . . Parts Self-Destructed 3 | . . 3 Prevented . | . . . Kills | -11 -10 -10 ------- Run | Yrd Mat Sub Combat Hostiles Destroyed 15 | . 14 1 Guns 15 | . 14 1 Classes Destroyed 5 | . 4 1 Hauler 2 | . 2 . Operator 1 | . 1 . Watcher 3 | . 3 . Grunt 14 | . 14 . Subdweller 1 | . . 1 Best Kill Streak 4 | . 4 1 Combat Bots Only 4 | . 4 1 Max Kills in Single Turn 1 | . 1 1 Gunslinging . | . . . Exploded . | . . . Melee . | . . . Uniques/NPCs Destroyed . | . . . Combat | -11 -10 -10 -------- Run | Yrd Mat Sub Hostile Shots Fired 103 | . 92 11 Missed 27 | . 24 3 Damage Taken 972 | . 807 165 Core 262 | . 203 59 Absorbed by Shields . | . . . Core Remaining (%) 100 | 100 . . Volleys Fired 82 | . 76 6 Largest 2 | . 2 2 Hottest 70 | . 70 60 Shots Fired 157 | . 145 12 Gun 157 | . 145 12 Cannon . | . . . Launcher . | . . . Special . | . . . Kinetic 89 | . 83 6 Thermal 68 | . 62 6 Explosive . | . . . Electromagnetic . | . . . Robot Hit Streak 14 | . 14 14 Robot Miss Streak 5 | . 5 1 Penetration Max . | . . . Secondary Targets 2 | . 1 1 Max Gunslinging Chain 1 | . 1 1 Shots Hit Robots 113 | . 103 10 Core Hits 44 | . 40 4 Critical Kills . | . . . Critical Parts Destroyed . | . . . Critical Strikes 3 | . 2 1 Burn 2 | . 2 . Destroy 1 | . . 1 Melee Attacks . | . . . Impact . | . . . Slashing . | . . . Piercing . | . . . Sneak Attacks . | . . . Combat Hostiles . | . . . Follow-up Attacks . | . . . Damage Inflicted 1358 | . 1256 102 Guns 1358 | . 1256 102 Cannons . | . . . Explosions . | . . . Melee . | . . . Ramming . | . . . Kinetic 785 | . 748 37 Thermal 573 | . 508 65 Explosive . | . . . Electromagnetic . | . . . Impact . | . . . Slashing . | . . . Piercing . | . . . Highest Corruption 2 | . 2 2 Average Corruption 2 | . 2 2 Corruption Purged . | . . . Corruption Blocked . | . . . Effects 12 | . 11 1 Message Errors 2 | . 2 . Matter Fused 6 | . 6 . Heat Flow Errors 1 | . 1 . Parts Fused 1 | . 1 . Data Loss (minor) 2 | . 1 1 Overload Shots . | . . . Overflow Damage . | . . . Projectiles . | . . . Explosions . | . . . Melee . | . . . Knockbacks . | . . . Impact . | . . . Kinetic . | . . . Secondary . | . . . Self-Inflicted Damage . | . . . Shots . | . . . Rammed . | . . . Targets Rammed . | . . . Kicked . | . . . Crushed . | . . . Highest Temperature 249 | . 249 . Average Temperature 81 | . 81 . Received Heat Transfer 498 | . 450 48 Effects 5 | . 5 . Interference 5 | . 5 . Siege Activations . | . . . Robots Corrupted . | . . . Combat Hostiles . | . . . Parts Fried . | . . . Impact Corruptions . | . . . Robots Melted . | . . . Combat Hostiles . | . . . Parts Melted 5 | . 3 2 Heat Transferred 1791 | . 1641 150 Parts Sabotaged . | . . . Parts Stolen . | . . . Parts Stripped . | . . . Power Chain Reactions . | . . . Alert | -11 -10 -10 ------- Run | Yrd Mat Sub Peak Influence 270 | . 270 . Initial . | . . . Average 151 | . 158 . Maximum Alert Level 1 | . 1 . Low Security (%) 68 | 100 66 . Level 1 31 | . 33 . Level 2 . | . . . Level 3 . | . . . Level 4 . | . . . Level 5 . | . . . High Security . | . . . Max Security . | . . . Squads Dispatched 3 | . 3 . Investigation . | . . . Extermination . | . . . Reinforcement 3 | . 3 . Assault . | . . . Garrison . | . . . Intercept . | . . . Searches Triggered . | . . . Construction Impeded . | . . . Haulers Reinforced . | . . . Active Scanning Responses . | . . . Cargo Convoy Interrupts . | . . . Stealth | -11 -10 -10 --------- Run | Yrd Mat Sub Distress Signals 1 | . 1 . Communications Jammed . | . . . Distress Signals . | . . . Times Spotted 22 | . 20 2 Peak Tracking Total 3 | . 3 2 Tactical Retreats . | . . . Traps | -11 -10 -10 ------- Run | Yrd Mat Sub Traps Triggered 1 | . 1 . Indirectly . | . . . Trap Hack Attempts . | . . . Triggered . | . . . Disarmed . | . . . Reprogrammed . | . . . Reused . | . . . Traps Extracted . | . . . Installed . | . . . Triggered . | . . . Machines | -11 -10 -10 ---------- Run | Yrd Mat Sub Machines Disabled 2 | . 2 . Max in Single Turn 1 | . 1 . Machines Repaired . | . . . Machines Dismantled . | . . . Machines Sabotaged . | . . . Overloaded Fab Kills . | . . . Hacking | -11 -10 -10 --------- Run | Yrd Mat Sub Machines Accessed 5 | . 5 . Terminals 5 | . 5 . Fabricators . | . . . Repair Stations . | . . . Recycling Units . | . . . Scanalyzers . | . . . Garrison Access . | . . . Total Hacks 10 | . 10 . Successful 3 | . 3 . Failed 7 | . 7 . Catastrophic 1 | . 1 . Database Lockouts . | . . . Manual . | . . . Terminals 10 | . 10 . Fabricators . | . . . Repair Stations . | . . . Recycling Units . | . . . Scanalyzers . | . . . Garrison Access . | . . . Terminal Hacks 3 | . 3 . Branch Access Points 1 | . 1 . Emergency Access Points 2 | . 2 . Fabricator Hacks . | . . . Repair Station Hacks . | . . . Recycling Unit Hacks . | . . . Scanalyzer . | . . . Garrison Access Hacks . | . . . Unauthorized Hacks . | . . . Terminals . | . . . Fabricators . | . . . Repair Stations . | . . . Recycling Units . | . . . Scanalyzers . | . . . Garrison Access . | . . . Data Cores Recovered . | . . . Used . | . . . Hacking Detections 5 | . 5 . Full Trace Events 1 | . 1 . Feedback Events . | . . . Feedback Blocked . | . . . Robot Schematics Acquired . | . . . Robots Built . | . . . Authchips . | . . . Time . | . . . Total Robot Build Rating . | . . . Part Schematics Acquired . | . . . Parts Built . | . . . Authchips . | . . . Time . | . . . Total Part Build Rating . | . . . Parts Repaired . | . . . Time . | . . . Parts Recycled . | . . . Recycled Matter . | . . . Retrieved Matter . | . . . Retrieved Components . | . . . Parts Scanalyzed . | . . . Part Schematics Acquired . | . . . Parts Damaged . | . . . Bothacking | -11 -10 -10 ------------ Run | Yrd Mat Sub Used RIF Installer . | . . . Robots Hacked . | . . . Non-combat . | . . . Combat . | . . . Robot Hacks Applied . | . . . Relay Couplers Released . | . . . Fabnet Peak Effective % . | . . . Robots Rewired . | . . . Allies Hacked . | . . . Hacks Repelled . | . . . Allies | -11 -10 -10 -------- Run | Yrd Mat Sub Total Allies . | . . . Largest Group . | . . . Highest-Rated Group . | . . . Highest-Rated Ally . | . . . Total Orders . | . . . Ally Attacks . | . . . Total Damage . | . . . Kills . | . . . Allies Corrupted . | . . . Allies Melted . | . . . Intel | -11 -10 -10 ------- Run | Yrd Mat Sub Robot Analysis Total . | . . . Derelict Logs Recovered 1 | . . 1 Drone Launches . | . . . Drone Recoveries . | . . . Exploration | -11 -10 -10 ------------- Run | Yrd Mat Sub Turns Passed 1166 | 42 951 173 Spaces Moved 768 | 38 584 146 Core 4 | 4 . . Treads . | . . . Legs . | . . . Wheels 764 | 34 584 146 Hover . | . . . Flight . | . . . Fastest Speed 50 | 50 90 100 Average Speed 105 | 86 107 100 Slowest Speed 175 | 100 175 100 Overloaded Moves . | . . . Propulsion Burnouts . | . . . Robots Hopped . | . . . Cave-ins Triggered . | . . . Exploration Rate (%) 36 | 3 96 11 Regions Visited 2 Branch Regions 1 Pre-discovered Areas . | . . . Known Exits Taken . | . . . Unknown Exits Taken 2 | 1 1 . Scrap Searched . | . . . Spaces Dug . | . . . Terrain Destroyed . | . . . Melee . | . . . Projectile . | . . . AOE . | . . . Terrain Rammed . | . . . Walls Destroyed . | . . . Machines Disabled . | . . . Actions | -11 -10 -10 --------- Run | Yrd Mat Sub Total 965 | 44 759 162 Wait 59 | . 50 9 Move 766 | 37 583 146 Hop . | . . . Pick Up 23 | 1 22 . Fast Attach 8 | 6 2 . Attach 4 | . 4 . Detach . | . . . Swap 13 | . 12 1 Drop 10 | . 10 . Fire 82 | . 76 6 Melee . | . . . Ram . | . . . Kick . | . . . Crush . | . . . Escape Stasis . | . . . Rewire . | . . . Trap . | . . . Miscellaneous . | . . . Route ------- -11/Scrapyard -10/Materials (discovered 6 exits: [*Mat x3] / *Min x2 / [*Sub]) -10/Subcaves History --------- Turn | Location | Event 19 | -11/Scrapyard | Discovered new exit (range 16) 43 | -11/Scrapyard | Entered Materials 226 | -10/Materials | Discovered new exit (range 11) 233 | -10/Materials | Identified exit to Mines 319 | -10/Materials | Build established: Mutant 364 | -10/Materials | Discovered new exit (range 8) 493 | -10/Materials | Core integrity fell below 50% 578 | -10/Materials | Discovered new exit (range 13) 816 | -10/Materials | Core integrity fell below 20% 855 | -10/Materials | Discovered new exit (range 16) 954 | -10/Materials | Discovered new exit (range 8) 994 | -10/Materials | Entered Subcaves 1167 | -10/Subcaves | Destroyed by HP-9VV(R) with Subdweller Laser Last Messages --------------- 00954_ U-05 Engineer lays Concrete. 00954_ EXIT=FOUND 00955_ U-05 Engineer lays Concrete. 00966_ Acquired EM Shotgun. 00974_ Acquired Imp. Targeting Computer. LOCATION=UNKNOWN AMBIENT_HEAT=-10 GOAL=ESCAPE 01005_ Acquired derelict log, extracted data. Data stored: Storage entrances (x1). 01045_ RJ-VTW(u) builds Twisted Machinery. 01146_ Discarded Imp. Targeting Computer. 01151_ MN-WY5(R) suffers critical hit (Destroy). 01157_ System corrupted: Component data lost. 01158_ Ion Engine destroyed. 01159_ Sub. Optics melted. 01159_ Sub. Laser melted. 01159_ MN-WY5(R) destroyed. 01159_ Switching to secondary target: HP-9VV(R). 01160_ Subatomizers dissect the Disposable Heat Sink. Map ----- +----------------------------------------------------+ | ??????????????????????## #????### # | | ??????????????????????# ##?###" ## | | ??????????????????????# ### """ #####? | | ??????????????????????## " " ##????? | | ???????????????????????## ## " # ##?????? | | ???????????????????????## ### " # ##??????? | | ???????????????????????# ## " # #???????? | | ???????????????????????# ####### ## #???????? | | ???????????????????????# #?????#### ##?####??? | | ???????????????????????## ####????# ### ##?? | | ????????????????????????# ## ##???# # # ### | | ????????????????????????# #???# # | | ????????????????????????# ##?## #? | | ????????????????????????# ### # "" ##? | | ????????????????????????# ## # " # #?? | | ????????????????????????## ### # &#???? | | ???????????????????????## # #??# # # & #???? | | ???????????????????????# #### # # " #???? | | ???????????????????????# ## ##"####???? | | ????????????? ???????## ## ### ##??????? | | ???????????? ?????## #?# #####??? | | ????????????? ????# #### #### #??? | | ??????????????# #???# ### ##??##### #??? | | ???????????????# #??## ### ##??????#####??? | | ???????????????# ###### #### #####?????????? | | ??????????????## ###@ # # # # #???????##? | | ??????????????# !%= #????### #? | | ??????????# ## R #???## #? | | ??????????????????# # # ##?## ## | | ??????????????????# ### ### ### # | | ?????????????????## #?# ### ## # | | ?????????????????# #?# ##### | | ?????????????????## ## ## ####???? | | ??????????????????### ###### #?####??????? | | ????????????????????### #????## ##????????????? | | ??????????????????????## ##?????####?????????????? | | ???????????????????????###???????????????????????? | | ?????????????????????????????????????????????????? | | ?????????????????????????????????????????????????? | | ?????????????????????????????????????????????????? | | ?????????????????????????????????????????????????? | | ?????????????????????????????????????????????????? | | ?????????????????????????????????????????????????? | | ?????????????????????????????????????????????????? | | ?????????????????????????????????????????????????? | | ?????????????????????????????????????????????????? | | ?????????????????????????????????????????????????? | | ?????????????????????????????????????????????????? | | ?????????????????????????????????????????????????? | | ?????????????????????????????????????????????????? | +----------------------------------------------------+ Best States ------------- Heat Dissipation 25 Energy Generation 14 Energy Capacity 250 Matter Stores 300 Matter Capacity 300 Sight Range 16 Terrain Scan Density 10 Armor Coverage 150 Evasion (%) 44 Targeting Accuracy 6 Item Schematics ----------------- None Robot Schematics ------------------ None Fabricated ------------ Nothing Alien Tech Used ----------------- None Achievements -------------- None Challenges ------------ None Game ------ Seed PlatingMolecularLattice Manual? 0 Play Time 00:11:41 Cumulative 290.4 hours Start 2024.04.30 @ 11:32:26 End 2024.04.30 @ 11:43:11 Sessions 1 Manual Loads 0 Difficulty Rogue Special Mode None Game No. 239 Rogue 227 Adventurer 12 Explorer 0 Win Type - Total 1 Types 1/0/0/0/0/0/0/0/0 Lore% 34 Gallery% 51 Achievement% 37 Wizard Run 0 Options --------- Layout 1 ASCII 0 Keyboard 0 Movement Mouse Keybinds 0 Fullscreen 1 Font 32/SmallcapsGlow Map View 77x35 Zoom Use 0% Tactical HUD 1 Map Filters NONE Filters NONE Steam 1 RUN: ced3faa0-6cd2-4497-8a24-cdc25105e63a